lending/lending_fUSD_20240202
["ID","MTS","AMOUNT","RATE_DAILY","PERIOD"]
[313171708,1706873876032,-619.0,0.00023,2]
[313171709,1706873876057,-14901.11191603,0.00023,2]
[313171710,1706873876397,1278.0001527,0.00022997,5]
[313171711,1706873877352,-172.1862467,0.00022998,2]
[313171712,1706873877379,-24827.8137533,0.00023,2]
[313171713,1706873878624,-25000.0,0.00023,2]
[313171714,1706873880068,-25000.0,0.00023,2]
[313171715,1706873885422,-4055.89237026,0.000229,2]
[313171716,1706873885447,-150.01,0.00022999,2]
[313171717,1706873885470,-610.0,0.00023,2]
[313171718,1706873885495,-20184.09762974,0.00023,2]
[313171719,1706873932741,620.76114713,0.00022999,3]
[313171720,1706873932822,522.5372222,0.00023,3]
[313171721,1706873940072,2307.11,0.00021992,2]
[313171722,1706873959349,179.99,0.00023139,5]
[313171723,1706873966897,4054.34781565,0.000229,6]
[313171724,1706874007524,291.37932093,0.00022999,3]
[313171725,1706874007623,269.57936623,0.00023,3]
[313171730,1706874081720,202.33678177,0.00022999,3]
[313171731,1706874082033,237.83240973,0.00023,3]
[313171733,1706874196828,150.0,0.00022,2]
[313171734,1706874258586,1011.22518572,0.00022898,5]
[313171735,1706874259203,150.0,0.00022,2]
[313171737,1706874282336,434.25,0.00021021,2]
[313171738,1706874284171,176.85,0.00022,2]
[313171739,1706874355058,160.87,0.00022388,2]
[313171740,1706874413467,1211.43385306,0.00022495,2]
[313171741,1706874471818,1922.59,0.00022432,2]
[313171742,1706874518394,666.59,0.00022452,2]
[313171761,1706874633677,207.0,0.00021698,2]
[313171764,1706874635160,-209.18222123,0.00022548,2]
[313171765,1706874635173,-177.22459552,0.00022571,2]
[313171766,1706874635186,-159.16,0.0002262,2]
[313171767,1706874635199,-930.08777076,0.0002266,2]
[313171768,1706874635230,-153.93104772,0.0002266,2]
[313171769,1706874635242,-2500.0,0.000229,2]
[313171770,1706874635255,-153.85515931,0.000229,2]
[313171771,1706874635267,-159.16,0.00022915,2]
[313171772,1706874635279,-150.0,0.00022959,2]
[313171773,1706874635292,-150.0,0.00022998,2]
[313171774,1706874635303,-19894.02653629,0.00022999,2]
[313171775,1706874635329,-283.25614464,0.00022999,2]
[313171776,1706874635344,-499.13548228,0.00022999,2]
[313171777,1706874635393,-992.83716785,0.00022999,2]
[313171778,1706874635408,-1130.00750793,0.00022999,2]
[313171779,1706874635446,-358.49149568,0.00022999,2]
[313171781,1706874635502,-1154.48370751,0.00022999,2]
[313171793,1706874638064,-3061.73046873,0.00022999,2]
[313171794,1706874638073,-150.01,0.00022999,2]
[313171795,1706874638082,-839.0,0.00023,2]
[313171796,1706874638091,-2867.0,0.00023,2]
[313171797,1706874638100,-428.0,0.00023,2]
[313171798,1706874638109,-318.0,0.00023,2]
[313171799,1706874638119,-150.0,0.00023,2]
[313171800,1706874638128,-430.251,0.00023,2]
[313171801,1706874638138,-342.0,0.00023,2]
[313171802,1706874638147,-475.777,0.00023,2]
[313171803,1706874638156,-545.0,0.00023,2]
[313171804,1706874638165,-4820.12934661,0.00023,2]
[313171805,1706874638177,-1892.5568582,0.00023,2]
[313171806,1706874638188,-8151.0871833,0.00023,2]
[313171807,1706874638199,-1000.0,0.00023,2]
[313171808,1706874638222,-368.26876877,0.00023,2]
[313171809,1706874638233,-56026.72274916,0.00023,2]
[313171810,1706874638244,-28858.04186133,0.00023,2]
[313171811,1706874638287,-313.27,0.00023,2]
[313171812,1706874638298,-261.99836,0.00023,2]
[313171813,1706874638343,-6689.62664889,0.00023,2]
[313171814,1706874638354,-1474.11288083,0.00023,2]
[313171825,1706874640624,-790.07358814,0.00023,2]
[313171826,1706874640681,-442.88535438,0.00023,2]
[313171827,1706874640693,-501.7001713,0.00023,2]
[313171828,1706874640704,-269.78455022,0.00023,2]
[313171829,1706874641300,-498.1733841,0.00023,2]
[313171830,1706874641424,-355.32,0.00023,2]
[313171831,1706874641438,-1807.65857259,0.00023,2]
[313171861,1706874643168,-59619.06542992,0.00023,2]
[313171862,1706874643224,-861.16236143,0.00023,2]
[313171863,1706874643237,-344.1,0.00023,2]
[313171922,1706874644227,-24275.17324232,0.00023,2]
[313171924,1706874644239,-384.05183585,0.00023,2]
[313171926,1706874644250,-3705.43890119,0.00023,2]
[313171930,1706874644272,-955.59576504,0.00023,2]
[313171932,1706874644283,-725.5,0.00023,2]
[313171937,1706874644324,-59090.55357787,0.00023,2]
[313171940,1706874644339,-500.0,0.00023,2]
[313171942,1706874644350,-1648.37425309,0.00023,2]
[313171944,1706874644362,-2458.68913821,0.00023,2]
[313171947,1706874644373,-513.67958074,0.00023,2]
[313171949,1706874644385,-516.68256542,0.00023,2]
[313171952,1706874644408,-44170.63372203,0.00023,2]
[313171955,1706874644425,-671.55999999,0.00023,2]
[313171957,1706874644438,-3391.63822268,0.00023,2]
[313171959,1706874644449,-6664.72342439,0.00023,2]
[313171962,1706874644460,-687.42428315,0.00023,2]
[313171969,1706874644525,234.57693488,0.000225,2]
[313172154,1706874646203,-7351.74604712,0.00023,2]
[313172159,1706874646260,-16486.62472043,0.00023,2]
[313172160,1706874646272,-3857.8983047,0.00023,2]
[313172161,1706874646284,-686.0,0.00023,2]
[313172162,1706874646315,-784.50318454,0.00023,2]
[313172268,1706874657603,2482.12405516,0.00022309,2]
[313172269,1706874663815,205.0,0.00021698,2]
[313172270,1706874666884,300.0,0.00022448,2]
[313172271,1706874671746,19017.67593218,0.00022452,2]
[313172272,1706874711330,2209.47380016,0.00021,4]
[313172274,1706874769181,456.38,0.00020905,2]
[313172275,1706874852644,250.0,0.00022361,2]
[313172276,1706874902020,1637.18,0.00022361,2]
[313172277,1706874907842,176.85,0.000219,2]
[313172278,1706874909115,353.15,0.00022448,2]
[313172279,1706874925679,500.0,0.00022,2]
[313172280,1706874953835,200.0,0.00022266,2]
[313172281,1706874954897,1205.71288084,0.00022471,2]
[313172282,1706874965197,159.16,0.00022448,2]
[313172283,1706875024376,23900.0,0.00022286,2]
[313172284,1706875055043,560.8,0.00022331,2]
[313172285,1706875172174,2000.0,0.00022373,2]
[313172286,1706875181451,433.56,0.00020448,2]
[313172287,1706875362880,156.39298892,0.00022448,2]
[313172288,1706875367909,156.39298887,0.00022498,2]
[313172289,1706875382472,564.83105628,0.00020448,2]
[313172290,1706875398603,150.0,0.00022,2]
[313172291,1706875411754,1364.31,0.00021961,2]
[313172292,1706875432466,499.46515759,0.00020448,2]
[313172293,1706875445532,180.17665865,0.00022,2]
[313172294,1706875460695,150.0,0.00022,2]
[313172295,1706875499295,159.16,0.00022131,2]
[313172296,1706875522844,551.36,0.00021948,2]
[313172297,1706875535208,167.3,0.00021948,2]
[313172298,1706875555123,792.46608911,0.00022,2]
[313172299,1706875607949,307.07,0.00021997,2]
[313172300,1706875664620,411.88,0.00020116,2]
[313172301,1706875664978,411.88,0.0002238,2]
[313172327,1706875832303,-892.78100991,0.00022547,2]
[313172328,1706875832313,-150.0,0.00022548,2]
[313172329,1706875832323,-156.39298887,0.00022548,2]
[313172330,1706875832333,-156.39298887,0.00022599,2]
[313172331,1706875832344,-1292.89548893,0.00022609,2]
[313172332,1706875832354,-156.39298887,0.00022649,2]
[313172333,1706875832364,-156.39298887,0.00022699,2]
[313172334,1706875832374,-85.71915542,0.000227,2]
[313172335,1706875832392,-108.79124458,0.000227,2]
[313172336,1706875832401,-156.39298887,0.00022749,2]
[313172337,1706875832410,-150.0,0.00022798,2]
[313172338,1706875832419,-7128.48,0.00022799,2]
[313172339,1706875832429,-156.39298887,0.000228,2]
[313172340,1706875832440,-2537.8175,0.000228,2]
[313172341,1706875832449,-156.39298887,0.0002285,2]
[313172342,1706875832460,-500.0,0.00022885,2]
[313172343,1706875832470,-470.059313,0.00022885,2]
[313172344,1706875832482,-29.940687,0.00022885,2]
[313172345,1706875832492,-500.0,0.00022885,2]
[313172346,1706875832501,-279.3372,0.00022885,2]
[313172347,1706875832511,-1000.0,0.00022885,2]
[313172348,1706875832520,-1000.0,0.00022885,2]
[313172349,1706875832530,-1000.0,0.00022885,2]
[313172350,1706875832539,-423.3719,0.00022885,2]
[313172351,1706875832548,-531.15,0.00022898,2]
[313172352,1706875832557,-1658.07,0.00022899,2]
[313172353,1706875832566,-399.4542,0.000229,2]
[313172354,1706875832576,-958.676013,0.000229,2]
[313172355,1706875832592,-7282.549887,0.000229,2]
[313172356,1706875832602,-19405.96295052,0.000229,2]
[313172357,1706875832613,-2080.9895942,0.000229,2]
[313172358,1706875832624,-426.89975225,0.000229,2]
[313172362,1706875832659,-282.27883657,0.000229,2]
[313172375,1706875838210,-690.84238113,0.00022798,2]
[313172376,1706875838267,-1614.41761887,0.00022798,2]
[313172377,1706875838276,-31160.44755219,0.000229,2]
[313172378,1706875838287,-65891.15571427,0.000229,2]
[313172379,1706875838297,-156.39298887,0.000229,2]
[313172380,1706875838306,-153.75489956,0.000229,2]
[313172381,1706875838315,-168.32412907,0.000229,2]
[313172382,1706875838324,-523.80102283,0.000229,2]
[313172383,1706875838333,-2702.958,0.00022949,2]
[313172384,1706875838477,-2279.0,0.00022949,2]
[313172385,1706875838487,-257.162,0.00022949,2]
[313172386,1706875838497,-19758.0,0.00022949,2]
[313172387,1706875838505,-1031.0,0.00022949,2]
[313172388,1706875838515,-2337.1607316,0.00022998,2]
[313172389,1706875838524,-24033.30846723,0.00022998,2]
[313172390,1706875838539,-726.28835269,0.00022998,2]
[313172391,1706875838550,-741.27723955,0.00022998,2]
[313172392,1706875838562,-420.8888349,0.00022998,2]
[313172393,1706875838580,-440.69044388,0.00022998,2]
[313172394,1706875838591,-995.853183,0.00022998,2]
[313172580,1706875840818,-350.44714156,0.00022998,2]
[313172581,1706875841034,-13017.67960067,0.00022998,2]
[313172582,1706875841661,-95733.81921074,0.00022998,2]
[313172583,1706875841671,-6577.38,0.00022998,2]
[313172584,1706875841680,-10969.82276027,0.00022999,2]
[313172585,1706875841691,-47582.71512447,0.00022999,2]
[313172586,1706875841703,-597.60997935,0.00022999,2]
[313172647,1706875843594,-3123.09265408,0.00022999,2]
[313172732,1706875861766,180.89489158,0.00022078,2]
[313172733,1706875922231,150.0,0.00022,2]
[313172734,1706875990522,150.0,0.00022,2]
[313172735,1706876014265,208.0,0.00022485,2]
[313172737,1706876128873,401.89,0.00020572,2]
[313172738,1706876177306,500.0,0.00022,2]
[313172739,1706876260001,160.87,0.00022236,2]
[313172741,1706876423836,250.0,0.00022,2]
[313172742,1706876425127,250.0,0.00022274,2]
[313172743,1706876452891,159.16,0.00022327,2]
[313172744,1706876467631,245.65,0.00022142,2]
[313172745,1706876565924,1925.375,0.00022442,2]
[313172746,1706876578700,381.79,0.00020611,2]
[313172747,1706876601369,150.77298008,0.00022,2]
[313172748,1706876646980,150.0,0.00022,2]
[313172750,1706876808321,1204.51,0.00022479,2]
[313172751,1706876825101,-165.43244469,0.0002253,2]
[313172752,1706876825122,-165.43244469,0.0002253,2]
[313172753,1706876825141,-165.43244469,0.0002253,2]
[313172754,1706876825162,-441.09,0.00022531,2]
[313172755,1706876825183,-153.29516149,0.000226,2]
[313172756,1706876825202,-1000.0,0.000227,2]
[313172757,1706876825223,-381.79,0.00022875,2]
[313172758,1706876825242,-150.0,0.00022898,2]
[313172759,1706876825261,-812.855,0.00022899,2]
[313172760,1706876825280,-2291.9306,0.00022899,2]
[313172761,1706876825301,-176.2913671,0.00022899,2]
[313172762,1706876825320,-154.39897374,0.000229,2]
[313172763,1706876825340,-153.75489955,0.000229,2]
[313172764,1706876825361,-156.17555083,0.000229,2]
[313172765,1706876825380,-211.36385689,0.000229,2]
[313172766,1706876825401,-999.99,0.000229,2]
[313172767,1706876825424,-308.81588644,0.00022998,2]
[313172768,1706876825446,-143486.43073893,0.00022999,2]
[313172769,1706876948184,-1031.78123629,0.00022539,2]
[313172770,1706876994893,343.61,0.00021264,2]
[313172805,1706877037525,-1000.0,0.00022899,2]
[313172806,1706877037689,-1500.0,0.00022899,2]
[313172807,1706877037699,-1234.03956942,0.000229,2]
[313172808,1706877037709,-309.49899878,0.00022997,2]
[313172809,1706877037720,-294.22198519,0.00022998,2]
[313172810,1706877037729,-300.0,0.00022998,2]
[313172811,1706877037739,-150.0,0.00022998,2]
[313172812,1706877037749,-150.0,0.00022998,2]
[313172813,1706877037759,-149315.40076932,0.00022999,2]
[313172814,1706877037770,-216.5387401,0.00022999,2]
[313172815,1706877037779,-264.58524504,0.00022999,2]
[313172816,1706877037788,-1941.0,0.00023,2]
[313172817,1706877037798,-167.725,0.00023,2]
[313172818,1706877037807,-427.0,0.00023,2]
[313172819,1706877037817,-998.0,0.00023,2]
[313172820,1706877037826,-1138.0,0.00023,2]
[313172821,1706877037835,-996.621,0.00023,2]
[313172822,1706877037844,-320.0,0.00023,2]
[313172823,1706877037853,-342.0,0.00023,2]
[313172824,1706877037862,-279.791,0.00023,2]
[313172825,1706877037872,-1358.0,0.00023,2]
[313172826,1706877037882,-1860.0,0.00023,2]
[313172827,1706877037891,-839.0,0.00023,2]
[313172828,1706877037900,-2867.0,0.00023,2]
[313172829,1706877037909,-947.0,0.00023,2]
[313172830,1706877037919,-238097.42237297,0.00023,2]
[313172832,1706877037972,-377.69639602,0.00023,2]
[313172838,1706877040761,-632.80192523,0.00022799,2]
[313172839,1706877040774,-851.14048,0.00022799,2]
[313172840,1706877040870,-495.93972144,0.00022799,2]
[313172846,1706877042455,-997.57117333,0.00022799,2]
[313172847,1706877042465,-48.25896429,0.00022899,2]
[313172848,1706877042476,-627.60675291,0.00022899,2]
[313172849,1706877042522,-1.70871191,0.00022899,2]
[313172850,1706877042621,-1091.48649999,0.00022899,2]
[313172856,1706877043220,1094.92801389,0.00022441,2]
[313172865,1706877045516,-521.93838146,0.00022899,2]
[313172866,1706877045573,-1032.68848944,0.00022899,2]
[313172867,1706877045583,-929.09960398,0.00023,2]
[313172868,1706877045592,-219.258,0.00023,2]
[313172869,1706877045601,-707.791,0.00023,2]
[313172870,1706877045610,-1223.0,0.00023,2]
[313172871,1706877045619,-319118.83078567,0.00023,2]
[313172872,1706877045632,-254.43950441,0.00023,2]
[313172873,1706877045652,-897.31553628,0.00023,2]
[313172874,1706877045689,-1161.14999999,0.00023,2]
[313172875,1706877045705,-2186.86538349,0.00023,2]
[313172876,1706877045746,-314.59003875,0.00023,2]
[313172877,1706877045803,-2182.2,0.00023,2]
[313172883,1706877055978,2065.52138934,0.00022999,4]
[313172884,1706877068278,376.99277602,0.00022999,3]
[313172885,1706877068391,313.67298494,0.00023,3]
[313172886,1706877070335,1100.18639172,0.0002254,2]
[313172887,1706877072265,200.0,0.000223,8]
[313172888,1706877074389,500.0,0.000224,8]
[313172889,1706877076511,800.0,0.000225,8]
[313172890,1706877078606,1100.0,0.000226,8]
[313172891,1706877080820,1400.0,0.000227,8]
[313172892,1706877083672,200.0,0.000228,8]
[313172893,1706877085764,200.0,0.000229,8]
[313172894,1706877122263,1177.6676162,0.00022442,2]
[313172895,1706877143825,186.78090221,0.00022998,3]
[313172896,1706877143935,181.13633294,0.00022999,3]
[313172897,1706877157861,368.337341,0.0002253,2]
[313172898,1706877188583,250.0,0.00022206,2]
[313172899,1706877217920,218.93360294,0.00022998,3]
[313172900,1706877217998,215.42383165,0.00022998,3]
[313172901,1706877224309,1246.99910234,0.00022547,2]
[313172902,1706877225143,200.0,0.00022229,2]
[313172903,1706877279691,352.88,0.00021998,2]
[313172904,1706877288064,1131.82,0.00022014,2]
[313172905,1706877365640,158.2,0.00022159,2]
[313172906,1706877416532,379.03,0.00020049,2]
[313172907,1706877416701,379.03,0.00022313,2]
[313172908,1706877416957,176.85,0.00022,2]
[313172909,1706877418243,176.85,0.00022548,2]
[313172910,1706877439773,281.0,0.00021964,2]
[313172911,1706877459864,15250.83029856,0.00021976,2]
[313172912,1706877459892,7166.36784664,0.00021976,2]
[313172913,1706877459920,1482.8018548,0.00021976,2]
[313172914,1706877498780,2000.0,0.00022083,2]
[313172915,1706877504965,320.2,0.00022083,2]
[313172916,1706877708411,717.69,0.00022034,2]
[313172917,1706877731959,299.99,0.00022875,7]
[313172918,1706877754963,868.28096346,0.00022083,2]
[313172919,1706877803284,150.0,0.00022,2]
[313172920,1706877807576,158.2,0.00022113,2]
[313172921,1706877810042,943.18,0.00021948,2]
[313172922,1706877823451,868.28096346,0.00022,2]
[313172923,1706877827929,10000.0,0.00025,30]
[313172924,1706877845453,862.24406492,0.00022,2]
[313172925,1706877845479,6.03689854,0.00022,2]
[313172926,1706877848928,150.0,0.00022,2]
[313172927,1706877850337,341.12,0.00020088,2]
[313172928,1706877850672,341.12,0.00022352,2]
[313172929,1706877865474,868.28096346,0.00022,2]
[313172930,1706877870461,150.0,0.00022,2]
[313172931,1706877887469,868.28096346,0.00022352,2]
[313172932,1706877891914,1469.0,0.00025,30]
[313172933,1706877907497,240.44574707,0.00022352,2]
[313172934,1706878024521,2713.47196797,0.00022548,7]
[313172935,1706878042512,176.85,0.00022,2]
[313172936,1706878174138,207.0,0.00021845,2]
[313172937,1706878202088,425.84,0.00022068,2]
[313172974,1706878231797,-2781.70066479,0.00022547,2]
[313172975,1706878231810,-417.99625695,0.00022547,2]
[313172976,1706878231820,-204.67489294,0.00022548,2]
[313172977,1706878231911,-93.33781195,0.00022548,2]
[313172978,1706878231921,-150.0,0.00022548,2]
[313172979,1706878231930,-96.80154225,0.00022548,2]
[313172999,1706878237635,-80.04845775,0.00022548,2]
[313173000,1706878237644,-630.91965249,0.000227,2]
[313173001,1706878237802,-351.6397542,0.000227,2]
[313173002,1706878237916,-17.44059331,0.000227,2]
[313173003,1706878237925,-1054.73834187,0.00022769,2]
[313173004,1706878237934,-159.76793939,0.00022798,2]
[313173005,1706878237943,-159.76793937,0.00022811,2]
[313173006,1706878237952,-159.76793937,0.00022824,2]
[313173007,1706878237961,-159.76793937,0.00022836,2]
[313173008,1706878237970,-159.76793937,0.00022849,2]
[313173009,1706878237978,-159.76793937,0.00022862,2]
[313173010,1706878237987,-159.76793937,0.00022875,2]
[313173011,1706878237995,-159.76793937,0.00022887,2]
[313173012,1706878238005,-150.0,0.00022897,2]
[313173013,1706878238014,-27899.18024568,0.00022898,2]
[313173024,1706878238176,-1955.221034,0.00022898,2]
[313173160,1706878240282,-864.14,0.00022898,2]
[313173235,1706878242735,-3077.6682786,0.00022898,2]
[313173236,1706878242746,-1266.5382313,0.00022898,2]
[313173237,1706878242759,-398.56836733,0.00022898,2]
[313173238,1706878242777,-16640.90994309,0.00022898,2]
[313173239,1706878242786,-3804.2241,0.00022898,2]
[313173240,1706878242795,-3517.9879,0.00022898,2]
[313173241,1706878242805,-1333.0026,0.00022899,2]
[313173242,1706878242814,-158.53092303,0.00022899,2]
[313173243,1706878242823,-158.53092303,0.000229,2]
[313173244,1706878242832,-158.53092303,0.000229,2]
[313173245,1706878242841,-158.53092303,0.000229,2]
[313173246,1706878242850,-1541.8751,0.000229,2]
[313173247,1706878242859,-1437.17145286,0.000229,2]
[313173248,1706878242868,-1208.9645,0.000229,2]
[313173249,1706878242878,-153.63661398,0.000229,2]
[313173250,1706878242887,-158.53092303,0.000229,2]
[313173251,1706878242897,-3982.10383527,0.000229,2]
[313173294,1706878245731,-622.59841591,0.000229,2]
[313173295,1706878245743,-395.29774882,0.000229,2]
[313173296,1706878245752,-1256.93594925,0.000229,2]
[313173297,1706878245898,-501.64185089,0.000229,2]
[313173298,1706878245907,-530.53890824,0.000229,2]
[313173299,1706878245916,-428.66838894,0.000229,2]
[313173300,1706878245956,-95.13263386,0.000229,2]
[313173301,1706878245965,-159.76793937,0.000229,2]
[313173302,1706878245974,-296.3263743,0.00022997,2]
[313173303,1706878245983,-506.68463745,0.00022998,2]
[313173304,1706878245992,-1359.05784014,0.00022998,2]
[313173314,1706878293923,207.0,0.00021845,2]
[313173315,1706878340610,166.32,0.00022165,2]
[313173316,1706878371793,287.61,0.00022205,2]
[313173317,1706878376312,361.73,0.0002027,2]
[313173318,1706878400321,23900.0,0.00021935,2]
[313173319,1706878428917,2000.0,0.00021954,2]
[313173320,1706878430161,186.91,0.00021968,10]
[313173321,1706878432486,195.59458801,0.000229,6]
[313173322,1706878446583,560.86032262,0.0002,2]
[313173328,1706878490322,275.07,0.00021921,2]
[313173329,1706878635449,200.0,0.00021941,2]
[313173330,1706878667421,176.85,0.00022,2]
[313173331,1706878670311,971.07,0.00021912,2]
[313173332,1706878688671,250.0,0.00021904,2]
[313173333,1706878758823,659.32,0.00021913,2]
[313173335,1706878803370,158.4,0.00022125,2]
[313173336,1706878803535,158.4,0.00022289,2]
[313173337,1706878803753,158.4,0.00022454,2]
[313173338,1706878811994,343.64,0.00019997,2]
[313173339,1706878812335,343.64,0.0002226,2]
[313173340,1706879053668,150.0,0.00022,2]
[313173341,1706879073566,150.0,0.00022,2]
[313173342,1706879258498,309.27,0.00020036,2]
[313173343,1706879258833,309.27,0.000223,2]
[313173344,1706879259663,158.4,0.00022119,2]
[313173345,1706879259887,158.4,0.00022407,2]
[313173346,1706879292360,176.85,0.00022,2]
[313173347,1706879373845,346.4,0.000235,3]
[313173348,1706879379845,230.08,0.0002193,2]
[313173349,1706879380887,346.4,0.000235,3]
[313173350,1706879381340,346.4,0.000235,3]
[313173351,1706879381815,346.4,0.000235,3]
[313173352,1706879382353,346.4,0.000235,3]
[313173353,1706879382902,346.4,0.000235,3]
[313173354,1706879383258,346.4,0.000235,3]
[313173355,1706879383778,809.22,0.0002193,2]
[313173356,1706879393012,346.4,0.000235,3]
[313173357,1706879394280,346.4,0.000235,3]
[313173358,1706879395975,346.4,0.000235,3]
[313173364,1706879426123,1000.0,0.00021962,2]
[313173372,1706879431921,-150.0,0.00022548,2]
[313173373,1706879431932,-176.85,0.00022548,2]
[313173374,1706879431941,-158.4,0.00022695,2]
[313173375,1706879431951,-3199.69692174,0.00022699,2]
[313173376,1706879431961,-1000.0,0.000227,2]
[313173377,1706879431971,-500.0,0.000227,2]
[313173378,1706879431981,-300.0,0.00022814,2]
[313173379,1706879431991,-150.0,0.00022814,2]
[313173380,1706879432001,-500.0,0.00022815,2]
[313173381,1706879432011,-172.33713361,0.00022815,2]
[313173382,1706879432023,-327.66286639,0.00022815,2]
[313173383,1706879432032,-800.0,0.00022815,2]
[313173384,1706879432042,-200.0,0.00022815,2]
[313173385,1706879432052,-500.0,0.00022815,2]
[313173386,1706879432062,-500.0,0.00022815,2]
[313173387,1706879432071,-500.0,0.00022815,2]
[313173388,1706879432081,-500.0,0.00022815,2]
[313173389,1706879432090,-200.0,0.00022815,2]
[313173390,1706879432099,-500.0,0.00022815,2]
[313173391,1706879432110,-500.0,0.00022816,2]
[313173392,1706879432120,-500.0,0.00022816,2]
[313173393,1706879432130,-237.2673009,0.00022816,2]
[313173394,1706879432141,-262.7326991,0.00022816,2]
[313173395,1706879432151,-499.99,0.00022816,2]
[313173396,1706879432160,-2863.65,0.00022816,2]
[313173397,1706879432169,-412.19163132,0.00022816,2]
[313173398,1706879432197,-87.80836868,0.00022816,2]
[313173400,1706879432206,-279.71597353,0.00022816,2]
[313173423,1706879437898,-220.28402647,0.00022816,2]
[313173426,1706879437909,-200.0,0.00022816,2]
[313173429,1706879437918,-500.0,0.00022816,2]
[313173431,1706879437927,-500.0,0.00022816,2]
[313173433,1706879437937,-383.28838432,0.00022816,2]
[313173436,1706879437952,-116.71161568,0.00022816,2]
[313173437,1706879437962,-384.98838432,0.00022816,2]
[313173438,1706879437975,-115.01161568,0.00022816,2]
[313173439,1706879437984,-294.60518373,0.00022816,2]
[313173440,1706879438006,-205.39481627,0.00022816,2]
[313173441,1706879438015,-500.0,0.00022816,2]
[313173442,1706879438024,-500.0,0.00022816,2]
[313173443,1706879438033,-800.0,0.00022816,2]
[313173444,1706879438042,-449.05228373,0.00022816,2]
[313173445,1706879438061,-50.94771627,0.00022816,2]
[313173446,1706879438071,-500.0,0.00022816,2]
[313173447,1706879438080,-500.0,0.00022816,2]
[313173448,1706879438089,-500.0,0.00022816,2]
[313173449,1706879438100,-500.0,0.00022816,2]
[313173450,1706879438150,-500.0,0.00022816,2]
[313173451,1706879438160,-469.71624498,0.00022816,2]
[313173452,1706879438182,-30.28375502,0.00022816,2]
[313173453,1706879438191,-500.0,0.00022816,2]
[313173454,1706879438202,-500.0,0.00022816,2]
[313173455,1706879438211,-500.0,0.00022816,2]
[313173456,1706879438222,-500.0,0.00022816,2]
[313173457,1706879438232,-200.0,0.00022816,2]
[313173458,1706879438242,-200.0,0.00022816,2]
[313173459,1706879438251,-200.0,0.00022816,2]
[313173460,1706879438260,-55704.83912481,0.000229,2]
[313173461,1706879438281,-153.37144647,0.000229,2]
[313173462,1706879438290,-168.32412907,0.000229,2]
[313173463,1706879438300,-181.89138347,0.000229,2]
[313173464,1706879438310,-816.0,0.00022945,2]
[313173465,1706879438320,-2867.0,0.00022945,2]
[313173466,1706879438329,-705.0,0.00022945,2]
[313173467,1706879438339,-698.624,0.00022945,2]
[313173468,1706879438348,-342.383,0.00022945,2]
[313173469,1706879438358,-387.063,0.00022945,2]
[313173470,1706879438368,-476.791,0.00022945,2]
[313173472,1706879438378,-320.0,0.00022945,2]
[313173474,1706879438387,-1119.63,0.00022945,2]
[313173476,1706879438397,-342.0,0.00022945,2]
[313173478,1706879438408,-833.393,0.00022945,2]
[313173479,1706879438418,-1613.601,0.00022945,2]
[313173481,1706879438427,-2282.0,0.00022945,2]